Cogmind - Beta 16 @@@ ROGUE MODE // 2026.02.05 @ 04:24:40 Player: shapeshifter Result: Destroyed by S-10 Pest with Light Assault Rifle Performance ------------- Evolutions (1) 500 Regions Visited (6) 1200 Robots Destroyed (1) 5 Value Destroyed (10) 10 Prototype IDs (23) 460 Alien Tech Used (0) 0 Bonus (500) 500 TOTAL SCORE: 2675 Bonus ------- Pacifist 200 Aligned with FarCom 300 Cogmind --------- Core Integrity 0/400 Matter 300/300 Energy 99/100 System Corruption 0% Temperature Cool (0) Movement Core (50) Location -8/Mines Parts ------- > --- POWER (1) -------- (None) > --- PROPULSION (2) --- (None) > --- UTILITY (4) ------ Machine Analyzer Machine Analyzer Machine Analyzer > --- WEAPON (2) ------- (None) > --- INVENTORY (5) ---- Modified TNC Trap Extractor (0/4) Trap Extractor (0/4) Trap Extractor (0/4) Trap Extractor (0/4) Peak State ------------ > --- POWER ------------ (None) > --- PROPULSION ------- (None) > --- UTILITY ---------- Machine Analyzer Machine Analyzer Machine Analyzer Machine Analyzer > --- WEAPON ----------- Light Assault Rifle > --- INVENTORY -------- Modified TNC Trap Extractor Trap Extractor Trap Extractor Trap Extractor [Rating: 14] Favorites ----------- Power None Propulsion None Utility Machine Analyzer Device Trap Extractor Processor Machine Analyzer Weapon Light Assault Rifle Energy Gun EM Pulse Gun Ballistic Gun Light Assault Rifle Build | -11 -10 -10 -9 -9 -9 -8 ------- Run | Yrd Mat Min Mat Min Exi Min Slots Evolved 2 | . . . 2 . . . Power . | . . . . . . . Propulsion . | . . . . . . . Utility 2 | . . . 2 . . . Weapon . | . . . . . . . Parts Attached 9 | 2 . 2 3 1 1 . Power . | . . . . . . . Engine . | . . . . . . . Core . | . . . . . . . Reactor . | . . . . . . . Propulsion . | . . . . . . . Treads . | . . . . . . . Leg . | . . . . . . . Wheel . | . . . . . . . Hover . | . . . . . . . Flight . | . . . . . . . Utility 6 | . . 2 3 . 1 . Device 2 | . . 2 . . . . Storage . | . . . . . . . Processor 4 | . . . 3 . 1 . Hackware . | . . . . . . . Protection . | . . . . . . . Artifact . | . . . . . . . Weapon 3 | 2 . . . 1 . . Energy Gun 1 | 1 . . . . . . Energy Cannon . | . . . . . . . Ballistic Gun 2 | 1 . . . 1 . . Ballistic Cannon . | . . . . . . . Launcher . | . . . . . . . Special Weapon . | . . . . . . . Impact Weapon . | . . . . . . . Slashing Weapon . | . . . . . . . Piercing Weapon . | . . . . . . . Special Melee Weapon . | . . . . . . . Unidentified Prototypes . | . . . . . . . Parts Lost 3 | . . . 2 . . 1 Power . | . . . . . . . Propulsion . | . . . . . . . Utility . | . . . . . . . Weapon 3 | . . . 2 . . 1 Highest Loss Streak 2 | . . . 2 . . 1 To Critical Strikes . | . . . . . . . Average Backups 4 | 1 3 4 4 5 5 5 Power . | . 1 1 . . . . Propulsion . | . . . . . . . Utility 4 | . 1 3 4 5 5 5 Weapon . | 1 . . . . . . Tool/Special . | . . . . . . . Unused Backups 5 | . 1 . 1 . . 3 Power 1 | . . . 1 . . . Propulsion . | . . . . . . . Utility 3 | . . . . . . 3 Weapon 1 | . 1 . . . . . Tool/Special . | . . . . . . . Average Slot Usage (%) 37 | . 28 32 30 41 47 35 Processor 22 | . . . 11 33 36 34 Energy Gun 4 | . 14 14 8 . . . Ballistic Gun 9 | . 14 14 9 8 11 1 Peak Build Rating 14 | 2 2 4 13 12 14 14 Average Rating 8 | . 2 2 5 10 11 10 On Entrance 5 | . 2 2 2 10 11 14 Avg Prop Armor Cover (%) . | . . . . . . . Naked Turns . | . . . . . . . Heaviest Build 5 | 3 3 5 5 3 1 1 Greatest Support 3 | 3 3 3 3 3 3 3 Greatest Overweight (x) 1 | . . 1 1 . . . Average Overweight (x) . | . . . . . . . Largest Inventory Capacity 5 | 5 5 5 5 5 5 5 Average Capacity 5 | 5 5 5 5 5 5 5 Most Carried 5 | 4 5 5 5 5 5 5 Average Carried 4 | 1 3 4 4 4 4 4 Final Capacity 5 | 5 5 5 5 5 5 5 Final Carried 5 | 2 5 5 5 5 5 5 Class Distribution -------------------- 100% | Mutant Dominant Class ---------------- Mutant | -10/Materials Mutant | -10/Mines Mutant | -9/Materials Mutant | -9/Mines Mutant | -9/Exiles Mutant | -8/Mines Resources | -11 -10 -10 -9 -9 -9 -8 ----------- Run | Yrd Mat Min Mat Min Exi Min Matter Collected 366 | 220 . . 92 39 . 15 Remotely . | . . . . . . . Salvage Created 20 | . . . . 20 . . Parts 2 | . . . . 2 . . Haulers Intercepted . | . . . . . . . Recyclers Shooed . | . . . . . . . Parts Field Recycled . | . . . . . . . Retrieved Matter . | . . . . . . . Parts Self-Destructed . | . . . . . . . Prevented . | . . . . . . . Parts Restored . | . . . . . . . Kills | -11 -10 -10 -9 -9 -9 -8 ------- Run | Yrd Mat Min Mat Min Exi Min Combat Hostiles Destroyed 1 | . . . . 1 . . Guns 1 | . . . . 1 . . Classes Destroyed 1 | . . . . 1 . . Swarmer 1 | . . . . 1 . . Best Kill Streak 1 | . . . . 1 . . Combat Bots Only 1 | . . . . 1 . . Max Kills in Single Turn 1 | . . . . 1 . . Gunslinging . | . . . . . . . Exploded . | . . . . . . . Melee . | . . . . . . . Uniques/NPCs Destroyed . | . . . . . . . Combat | -11 -10 -10 -9 -9 -9 -8 -------- Run | Yrd Mat Min Mat Min Exi Min Hostile Shots Fired 79 | . . 1 39 15 . 24 Missed 27 | . . 1 16 4 . 6 Hits 52 | . . . 23 11 . 18 Projectile 52 | . . . 23 11 . 18 Critical Strikes 1 | . . . . 1 . . Damage Taken 586 | . . . 262 113 . 211 Core 401 | . . . 119 92 . 190 Absorbed by Shields . | . . . . . . . Core Remaining (%) 100 | 100 . 100 . . . . Volleys Fired 6 | . . . . 6 . . Largest 1 | . . . . 1 . . Hottest 20 | . . . . 20 . . Shots Fired 6 | . . . . 6 . . Gun 6 | . . . . 6 . . Cannon . | . . . . . . . Launcher . | . . . . . . . Special . | . . . . . . . Kinetic 6 | . . . . 6 . . Thermal . | . . . . . . . Explosive . | . . . . . . . Electromagnetic . | . . . . . . . Robot Hit Streak 2 | . . . . 2 . . Robot Miss Streak 1 | . . . . 1 . . Penetration Max . | . . . . . . . Secondary Targets . | . . . . . . . Shots Hit Robots 3 | . . . . 3 . . Core Hits 1 | . . . . 1 . . Critical Kills . | . . . . . . . Critical Parts Destroyed . | . . . . . . . Critical Strikes . | . . . . . . . Melee Attacks . | . . . . . . . Impact . | . . . . . . . Slashing . | . . . . . . . Piercing . | . . . . . . . Sneak Attacks . | . . . . . . . Combat Hostiles . | . . . . . . . Follow-up Attacks . | . . . . . . . Damage Inflicted 27 | . . . . 27 . . Guns 27 | . . . . 27 . . Cannons . | . . . . . . . Explosions . | . . . . . . . Melee . | . . . . . . . Ramming . | . . . . . . . Kinetic 27 | . . . . 27 . . Thermal . | . . . . . . . Explosive . | . . . . . . . Electromagnetic . | . . . . . . . Impact . | . . . . . . . Slashing . | . . . . . . . Piercing . | . . . . . . . Highest Corruption . | . . . . . . . Average Corruption . | . . . . . . . Corruption Purged . | . . . . . . . Corruption Blocked . | . . . . . . . Overload Shots . | . . . . . . . Overflow Damage . | . . . . . . . Projectiles . | . . . . . . . Explosions . | . . . . . . . Melee . | . . . . . . . Knockbacks . | . . . . . . . Impact . | . . . . . . . Kinetic . | . . . . . . . Secondary . | . . . . . . . Self-Inflicted Damage . | . . . . . . . Shots . | . . . . . . . Rammed . | . . . . . . . Targets Rammed . | . . . . . . . Kicked . | . . . . . . . Crushed . | . . . . . . . Highest Temperature . | . . . . . . . Average Temperature . | . . . . . . . Received Heat Transfer 87 | . . . 87 . . . Siege Activations . | . . . . . . . Martial Activations . | . . . . . . . Shielding Activations . | . . . . . . . Robots Disrupted . | . . . . . . . Combat Hostiles . | . . . . . . . Robots Corrupted . | . . . . . . . Combat Hostiles . | . . . . . . . Parts Fried . | . . . . . . . Impact Corruptions . | . . . . . . . Robots Melted . | . . . . . . . Combat Hostiles . | . . . . . . . Parts Melted . | . . . . . . . Heat Transferred . | . . . . . . . Parts Sabotaged . | . . . . . . . Parts Stolen . | . . . . . . . Parts Stripped . | . . . . . . . Power Chain Reactions . | . . . . . . . Alert | -11 -10 -10 -9 -9 -9 -8 ------- Run | Yrd Mat Min Mat Min Exi Min Maximum Alert Level . | . . . . . . . Low Security (%) 100 | 100 100 100 100 100 . 100 Level 1 . | . . . . . . . Level 2 . | . . . . . . . Level 3 . | . . . . . . . Level 4 . | . . . . . . . Level 5 . | . . . . . . . High Security . | . . . . . . . Max Security . | . . . . . . . Peak Influence 34 | . . . 34 30 . 15 Initial . | . . . . . . . Average 4 | . . . 11 4 . 4 Influence Increases 129 | . . . 64 40 . 25 Destroy 0b10 Robot/C 20 | . . . . 20 . . Destroy Leader 10 | . . . . 10 . . Trap Triggered on 0b10 50 | . . . 30 10 . 10 Successful Hack 4 | . . . 4 . . . Partial Spotted 15 | . . . 15 . . . Lose Combat Pursuer 30 | . . . 15 . . 15 Influence Decreases 129 | . . . 64 20 20 25 Entered New Map 20 | . . . . . 20 . Time Decay 75 | . . . 30 20 . 25 Purge Threat 34 | . . . 34 . . . Squads Dispatched 1 | . . . 1 . . . Investigation . | . . . . . . . Extermination . | . . . . . . . Reinforcement 1 | . . . 1 . . . Assault . | . . . . . . . Garrison . | . . . . . . . Intercept . | . . . . . . . Searches Triggered . | . . . . . . . Construction Impeded . | . . . . . . . Haulers Reinforced . | . . . . . . . Active Scanning Responses . | . . . . . . . Cargo Convoy Interrupts . | . . . . . . . Stealth | -11 -10 -10 -9 -9 -9 -8 --------- Run | Yrd Mat Min Mat Min Exi Min Distress Signals . | . . . . . . . Communications Jammed . | . . . . . . . Distress Signals . | . . . . . . . Times Spotted 25 | . 1 1 13 3 . 7 Peak Tracking Total 9 | . 1 3 9 3 . 4 Tactical Retreats 2 | . . . 1 . . 1 Traps | -11 -10 -10 -9 -9 -9 -8 ------- Run | Yrd Mat Min Mat Min Exi Min Traps Triggered . | . . . . . . . Indirectly . | . . . . . . . Trap Hack Attempts . | . . . . . . . Triggered . | . . . . . . . Disarmed . | . . . . . . . Reprogrammed . | . . . . . . . Reused 5 | . . . 3 1 . 1 Traps Extracted 7 | . . 5 2 . . . Installed 7 | . . . 5 1 . 1 Triggered 5 | . . . 3 1 . 1 Most Traps Carried 5 | . . 2 5 2 1 1 Machines | -11 -10 -10 -9 -9 -9 -8 ---------- Run | Yrd Mat Min Mat Min Exi Min Machines Disabled . | . . . . . . . Max in Single Turn . | . . . . . . . Machines Repaired . | . . . . . . . Machines Dismantled . | . . . . . . . Machines Sabotaged . | . . . . . . . Overloaded Fab Kills . | . . . . . . . Hacking | -11 -10 -10 -9 -9 -9 -8 --------- Run | Yrd Mat Min Mat Min Exi Min Machines Accessed 5 | . . . 3 . 2 . Terminals 3 | . . . 3 . . . Fabricators . | . . . . . . . Repair Stations . | . . . . . . . Recycling Units . | . . . . . . . Scanalyzers . | . . . . . . . Garrison Access . | . . . . . . . Total Hacks 11 | . . . 9 . 2 . Successful 6 | . . . 4 . 2 . Failed 5 | . . . 5 . . . Catastrophic 1 | . . . 1 . . . Database Lockouts . | . . . . . . . Manual 9 | . . . 8 . 1 . Terminals 9 | . . . 9 . . . Fabricators . | . . . . . . . Repair Stations . | . . . . . . . Recycling Units . | . . . . . . . Scanalyzers . | . . . . . . . Garrison Access . | . . . . . . . Terminal Hacks 4 | . . . 2 . 2 . Record 1 | . . . . . 1 . Branch Access Points 1 | . . . 1 . . . Unreport Threat 1 | . . . 1 . . . Proto ID Catalog 1 | . . . . . 1 . Fabricator Hacks . | . . . . . . . Repair Station Hacks . | . . . . . . . Recycling Unit Hacks . | . . . . . . . Scanalyzer . | . . . . . . . Garrison Access Hacks . | . . . . . . . Unauthorized Hacks 2 | . . . 2 . . . Terminals 2 | . . . 2 . . . Botnet 2 | . . . 2 . . . Fabricators . | . . . . . . . Repair Stations . | . . . . . . . Recycling Units . | . . . . . . . Scanalyzers . | . . . . . . . Garrison Access . | . . . . . . . Data Cores Recovered . | . . . . . . . Used . | . . . . . . . Hacking Detections 3 | . . . 3 . . . Full Trace Events . | . . . . . . . Feedback Events . | . . . . . . . Feedback Blocked . | . . . . . . . Robot Schematics Acquired . | . . . . . . . Robots Built . | . . . . . . . Authchips . | . . . . . . . Time . | . . . . . . . Total Robot Build Rating . | . . . . . . . Part Schematics Acquired . | . . . . . . . Parts Built . | . . . . . . . Authchips . | . . . . . . . Time . | . . . . . . . Total Part Build Rating . | . . . . . . . Part Studies Acquired . | . . . . . . . Parts Repaired . | . . . . . . . Time . | . . . . . . . Parts Recycled . | . . . . . . . Recycled Matter . | . . . . . . . Retrieved Matter . | . . . . . . . Retrieved Components . | . . . . . . . Parts Scanalyzed . | . . . . . . . Part Schematics Acquired . | . . . . . . . Parts Damaged . | . . . . . . . Bothacking | -11 -10 -10 -9 -9 -9 -8 ------------ Run | Yrd Mat Min Mat Min Exi Min Used RIF Installer . | . . . . . . . Robots Hacked . | . . . . . . . Non-combat . | . . . . . . . Combat . | . . . . . . . Robot Hacks Applied . | . . . . . . . Relay Couplers Released . | . . . . . . . Fabnet Peak Effective % . | . . . . . . . Robots Rewired . | . . . . . . . Allies Hacked . | . . . . . . . Hacks Repelled . | . . . . . . . Allies | -11 -10 -10 -9 -9 -9 -8 -------- Run | Yrd Mat Min Mat Min Exi Min Total Allies . | . . . . . . . Largest Group . | . . . . . . . Highest-Rated Group . | . . . . . . . Highest-Rated Ally . | . . . . . . . Total Orders . | . . . . . . . Ally Attacks . | . . . . . . . Total Damage . | . . . . . . . Kills . | . . . . . . . Allies Corrupted . | . . . . . . . Allies Melted . | . . . . . . . Intel | -11 -10 -10 -9 -9 -9 -8 ------- Run | Yrd Mat Min Mat Min Exi Min Active Infowar (turns) 377 | . . . 37 86 151 103 Machine Analysis 377 | . . . 37 86 151 103 Robot Analysis Total . | . . . . . . . Derelict Logs Recovered 2 | . . . . 2 . . Drone Launches . | . . . . . . . Drone Recoveries . | . . . . . . . Exploration | -11 -10 -10 -9 -9 -9 -8 ------------- Run | Yrd Mat Min Mat Min Exi Min Turns Passed 572 | 23 63 54 92 86 151 103 Spaces Moved 967 | 35 117 84 131 141 298 161 Core 967 | 35 117 84 131 141 298 161 Treads . | . . . . . . . Legs . | . . . . . . . Wheels . | . . . . . . . Hover . | . . . . . . . Flight . | . . . . . . . Fastest Speed 50 | 50 50 50 50 50 50 50 Average Speed 50 | 50 50 55 50 50 50 50 Slowest Speed 100 | 50 50 100 100 50 50 50 Overloaded Moves . | . . . . . . . Propulsion Burnouts . | . . . . . . . Robots Hopped . | . . . . . . . Potential Cave-ins . | . . . . . . . Cave-ins Triggered . | . . . . . . . Exploration Rate (%) 30 | 2 19 26 26 33 69 38 Regions Visited 6 Branch Regions 4 Pre-discovered Areas 3 | . . . . 2 1 . Known Exits Taken 1 | . . . 1 . . . Unknown Exits Taken 5 | 1 1 1 . 1 1 . Scrap Searched 2 | . . . . 1 . 1 Spaces Dug . | . . . . . . . Terrain Destroyed . | . . . . . . . Melee . | . . . . . . . Projectile . | . . . . . . . AOE . | . . . . . . . Terrain Rammed . | . . . . . . . Walls Destroyed . | . . . . . . . Machines Disabled . | . . . . . . . Actions | -11 -10 -10 -9 -9 -9 -8 --------- Run | Yrd Mat Min Mat Min Exi Min Total 1042 | 40 121 91 156 151 299 184 Wait 34 | . . 4 10 1 . 19 Move 961 | 34 116 83 130 140 297 161 Hop . | . . . . . . . Pick Up 10 | 4 4 . 1 . 1 . Fast Attach 4 | . . . 3 1 . . Attach 10 | 2 . 2 3 1 1 1 Detach 7 | . . 2 3 1 . 1 Swap . | . . . . . . . Drop 3 | . 1 . 1 . . 1 Fire 6 | . . . . 6 . . Melee . | . . . . . . . Ram . | . . . . . . . Kick . | . . . . . . . Crush . | . . . . . . . Escape Stasis . | . . . . . . . Rewire . | . . . . . . . Trap 7 | . . . 5 1 . 1 Miscellaneous . | . . . . . . . Route ------- -11/Scrapyard -10/Materials -10/Mines -9/Materials -9/Mines -9/Exiles -8/Mines History --------- Turn | Location | Event 10 | -11/Scrapyard | Discovered new exit (range 15) 24 | -11/Scrapyard | Entered Materials 69 | -10/Materials | Discovered new exit (range 7) 87 | -10/Materials | Entered Mines 116 | -10/Mines | Discovered new exit (range 16) 141 | -10/Mines | Entered Materials 141 | -9/Materials | Evolved 2 slots: Utility x2 149 | -9/Materials | Identified exit to Mines 233 | -9/Materials | Entered Mines 236 | -9/Mines | Learned location of Zion (-6) 267 | -9/Mines | Learned location of Storage (-7) 304 | -9/Mines | Core integrity fell below 50% 310 | -9/Mines | Build established: Mutant 317 | -9/Mines | Deemed a non-threat by the Exiles lab entrance 317 | -9/Mines | Discovered new exit (range 5) 319 | -9/Mines | Entered Exiles 332 | -9/Exiles | Met 8R-AWN 340 | -9/Exiles | Met EX-HEX 359 | -9/Exiles | Met EX-DEC 400 | -9/Exiles | Met EX-BIN 407 | -9/Exiles | Aligned with FarCom system 407 | -9/Exiles | Given EX-Vault access code 419 | -9/Exiles | Opened EX-Vault 424 | -9/Exiles | Found Modified TNC 435 | -9/Exiles | Warned to stay clear of 0b10 Research branches 466 | -9/Exiles | Discovered new exit (range 10) 470 | -9/Exiles | Left Exiles lab with Modified TNC 470 | -9/Exiles | Entered Mines 480 | -8/Mines | Core integrity fell below 20% 573 | -8/Mines | Destroyed by S-10 Pest with Light Assault Rifle Last Messages --------------- the FarCom system will continue to maintain contact via our distributed network. 00466_ EXIT=FOUND LOCATION=UNKNOWN GOAL=ESCAPE 00470_ Receiving FarCom transmissions... 00474_ Discarded Machine Analyzer. 00475_ Lgt. Assault Rifle destroyed. 00477_ Trap Extractor dropped Dirty Bomb Trap. 00477_ Installed Dirty Bomb Trap. 00479_ S-10 Pest triggered Dirty Bomb Trap. 00479_ An explosion rips through the floor. 00479_ S-10 Pest destroyed. 00479_ K-01 Serf destroyed. 00479_ S-10 Pest destroyed. 00479_ Acquired 15 matter. 00494_ Searching scrap... 00494_ Found Flak Cannon. 00494_ Found Imp. Light Armor Plating. 00494_ Found 42 Matter. Map ----- +----------------------------------------------------+ | | | | | | | | | | | | | | | | | | | | | | | | | ?????????????????????????????????????? | | ?????????????????????????????????????? | | ?????????????????????????????????????? | | ?????????????????????????????????????? | | ?????????????????????????????????????? | | ???????????????????????????####??????? | | ??????????????????????????? #??????? | | ??????????????????????????? #??????? | | ??????????????????????????? ##?????? | | ??????????????????????????? #?????? | | ??????????????????????????? #?????? | | ?????????????? ?????????## #?????? | | ????????????? ???????## #??????? | | ????????????? ??????#@ #??????? | | ????????????? ?????# ##??????? | | ?????????????# #????# #???????? | | ?????????????# #???##s #???????? | | ?????????????# #???#s #???????? | | ? ???????????# #?##s #???????? | | ? ????????????# ## #???????? | | ? ??????????????????# ##???????? | | ? ??????????????????### ##???????? | | ? ????????????????????## #???????? | | ? ??????????????? ????## #???????? | | ? ??????????????# ????## #???????? | | # #?????????????# ????# #???????? | | # #?????????????# #??## ##???????? | | # #?????????????# #?## ##????????? | | # #?????????????# #?# #?????????? | | # #?????????????# #?# ##?????????? | | # #?????????????# #?## ##??????????? | | # #?????????????# #??# #???????????? | | # #?????????????# #??# #???????????? | | # #?????????????# #??# #???????????? | | # #?####????????# #??# #???????????? | | # ### ###??????# ##?# ##??????????? | | ## ##?????# ### ##?????????? | | #?????# #?????????? | +----------------------------------------------------+ Best States ------------- Heat Dissipation 28 Energy Generation 5 Energy Capacity 100 Matter Stores 300 Matter Capacity 300 Sight Range 16 Terrain Scan Density 10 Evasion (%) 50 Trap Extractor Capacity 4 Item Schematics ----------------- None Robot Schematics ------------------ None Fabricated ------------ Nothing Repaired ---------- Nothing Studied --------- None Alien Tech Used ----------------- None Achievements -------------- None Challenges ------------ None Game ------ Seed DisruptorSigixSegregator Manual? 0 Play Time 00:07:31 Cumulative 679.1 hours Start 2026.02.05 @ 04:07:36 End 2026.02.05 @ 04:24:40 Sessions 2 Manual Loads 0 Difficulty Rogue Special Mode None Game No. 844 Rogue 844 Adventurer 0 Explorer 0 Win Type - Total 24 Types 11/1/3/3/2/0/2/2/0/0 Lore% 96 Gallery% 93 Achievement% 82 Wizard Run 0 Options --------- Layout 0 ASCII 0 Keyboard 0 Movement Mouse Keybinds 0 Fullscreen 1 Font 24/Terminus Map View 76x50 Zoom Use 0% Tactical HUD 1 Map Filters NONE Filters NONE Steam 1 RUN: 4772a78d-16c7-4b72-b4ec-57c84111ac54